bitfinex/quotes_ETHUSD_20240827
["timestamp","ask_amount","ask_price","bid_price","bid_amount"]
[1724794339144,0.03244074,2563.5,2562.8,11.629258]
[1724794341182,0.03244074,2563.5,2562.8,10.2173]
[1724794341183,3.90107,2563.4,2562.8,10.2173]
[1724794341479,0.03244074,2563.3,2562.8,10.2173]
[1724794342480,3.93351074,2563.4,2562.8,10.2173]
[1724794343551,3.90107,2563.4,2562.8,10.2173]
[1724794344746,0.03244074,2563.3,2562.8,10.2173]
[1724794345091,3.90107,2563.4,2562.8,10.2173]
[1724794345389,3.90122,2563.3,2562.8,10.2173]
[1724794345595,0.03244074,2563.2,2562.8,10.2173]
[1724794346389,3.93381074,2563.2,2562.8,10.2173]
[1724794346768,0.03244074,2563.2,2562.8,10.2173]
[1724794347087,0.03244074,2563.3,2562.8,10.2173]
[1724794348500,2.39510686,2563.5,2562.8,10.2173]
[1724794348501,6.29488054,2563.5,2562.8,11.23903]
[1724794348702,0.03244074,2563.4,2562.8,11.23903]
[1724794349070,2.42641128,2563.5,2562.8,11.23903]
[1724794349607,6.32733128,2563.5,2562.8,11.23903]
[1724794349968,2.42641128,2563.5,2562.9,0.07802884]
[1724794350305,2.42641128,2563.5,2563.0,0.55]
[1724794351909,4.79296563,2563.7,2563.0,0.55]
[1724794351910,2.39397054,2563.7,2563.2,9.8807]
[1724794352108,2.39397054,2563.8,2563.3,0.62801641]
[1724794352862,2.39397054,2563.8,2563.4,0.07801632]
[1724794353073,3.89993,2564.2,2563.4,0.07801632]
[1724794353074,2.39604291,2564.0,2563.6,9.3501]
[1724794353287,3.89962,2564.4,2563.6,10.88913131]
[1724794353288,2.39604291,2564.1,2563.6,10.88913131]
[1724794353461,2.39604291,2564.1,2563.7,0.55]
[1724794354607,2.39604291,2564.2,2563.7,0.55]
[1724794354809,2.39604291,2564.2,2563.7,1.69391313]
[1724794354976,2.42848365,2564.3,2563.7,1.69391313]
[1724794355179,2.39604291,2564.2,2563.7,1.69391313]
[1724794355510,2.39604291,2564.2,2563.0,16.4821]
[1724794355511,3.90084,2563.6,2563.0,16.4821]
[1724794355725,0.03244074,2563.5,2563.0,9.1121]
[1724794356009,3.93328074,2563.6,2563.0,10.57233131]
[1724794357186,6.32932365,2563.6,2563.0,10.57233131]
[1724794357493,3.93328074,2563.6,2563.1,0.55]
[1724794357699,0.03440313,2563.5,2563.1,0.55]
[1724794358793,6.33201925,2563.7,2563.1,0.55]
[1724794358794,3.93306074,2563.7,2563.1,0.55]
[1724794359099,0.03455448,2563.4,2563.1,0.55]
[1724794359303,0.03244074,2563.7,2563.1,1.66223313]
[1724794359606,3.90054,2563.8,2563.1,1.66223313]
[1724794359910,0.06699522,2563.7,2563.1,1.66223313]
[1724794360109,0.06699522,2563.7,2563.1,0.55]
[1724794360317,3.90077,2563.6,2563.1,0.55]
[1724794360897,0.06699522,2563.5,2563.1,0.55]
[1724794361386,0.03455448,2563.5,2563.1,0.55]
[1724794362124,2.0,2563.2,2561.9,0.3914]
[1724794362275,3.90295,2562.2,2561.9,0.3914]
[1724794362478,0.42273574,2562.1,2561.9,0.3914]
[1724794362816,3.93764394,2562.1,2561.6,0.3914]
[1724794363019,0.03244074,2562.0,2561.6,0.3914]
[1724794363221,0.03244074,2562.1,2561.6,0.3914]
[1724794363421,0.03244074,2562.1,2561.5,9.3779]
[1724794363422,5.90363,2561.8,2561.5,0.3914]
[1724794363630,0.03244074,2561.7,2561.4,0.80932691]
[1724794364012,0.03244074,2561.7,2560.7,9.3779]
[1724794364013,1.9956726,2561.6,2560.7,9.3779]
[1724794364189,1.9956726,2561.6,2560.8,0.93779]
[1724794364190,3.93642074,2561.5,2560.8,0.93779]
[1724794364524,3.93642074,2561.5,2560.7,9.3779]
[1724794364525,3.9043,2561.3,2560.7,9.3779]
[1724794364683,3.90463,2561.1,2560.3,3.0]
[1724794365023,0.03244074,2561.0,2560.3,3.0]
[1724794365383,3.90413,2561.4,2560.4,0.07810088]
[1724794365721,5.92994779,2561.4,2560.4,1.23569009]
[1724794365925,5.89764705,2561.3,2560.4,1.23569009]
[1724794366122,0.03244074,2561.2,2560.4,1.23569009]
[1724794366295,0.03244074,2561.2,2560.5,0.42356901]
[1724794367998,2.03244074,2561.2,2560.5,0.42356901]
[1724794368196,3.9046,2561.1,2560.5,0.42356901]
[1724794368386,0.03244074,2561.0,2560.5,0.42356901]
[1724794368584,2.0,2561.2,2560.5,0.0781065]
[1724794369028,2.0,2561.2,2560.4,3.0]
[1724794369540,2.0,2561.2,2560.5,0.55]
[1724794369689,1.99337705,2561.4,2560.7,9.5812]
[1724794369890,4.02581779,2561.7,2560.8,1.58620329]
[1724794370125,4.02008246,2561.7,2560.8,1.58620329]
[1724794370391,7.92376246,2561.7,2560.8,1.58620329]
[1724794370614,5.89156172,2561.6,2560.8,0.95812]
[1724794370800,0.03244074,2561.5,2560.8,0.95812]
[1724794371745,0.03244074,2561.6,2560.8,0.95812]
[1724794371915,0.03244074,2561.6,2560.7,9.5812]
[1724794371916,0.03244074,2561.6,2560.9,1.68201428]
[1724794372245,3.93637074,2561.6,2560.9,1.603932]
[1724794372757,3.90407,2561.5,2560.9,0.55]
[1724794373041,0.03244074,2561.4,2560.8,0.55]
[1724794373251,0.03244074,2561.4,2560.7,9.5812]
[1724794373397,0.03244074,2561.4,2560.8,1.50812]
[1724794373799,3.93651074,2561.5,2560.8,1.50812]
[1724794374741,3.90407,2561.5,2560.8,1.50812]
[1724794374983,0.03244074,2561.4,2560.8,1.50812]
[1724794375183,0.03244074,2561.4,2560.8,0.55]
[1724794375737,0.03244074,2561.5,2560.8,0.55]
[1724794376062,0.03244074,2561.6,2560.8,0.55]
[1724794376360,3.93625074,2561.6,2560.8,0.55]
[1724794376564,0.03244074,2561.6,2560.8,0.55]
[1724794376763,0.03244074,2561.6,2560.9,1.01312]
[1724794377565,0.03244074,2561.8,2561.0,0.62808322]
[1724794377779,0.03244074,2561.8,2561.0,0.55]
[1724794378086,0.03244074,2562.0,2561.2,9.853]
[1724794378379,7.8870643,2562.3,2561.3,4.07117854]
[1724794378380,0.03244074,2562.2,2561.3,4.07117854]
[1724794378579,3.93524074,2562.3,2561.4,0.55]
[1724794378884,3.93524074,2562.3,2561.6,9.853]
[1724794379083,3.93524074,2562.3,2561.7,0.07806295]
[1724794379480,3.90263,2562.4,2561.7,0.07806295]
[1724794379638,3.90263,2562.4,2561.6,10.90110642]
[1724794379639,0.03244074,2562.4,2561.6,10.90110642]
[1724794379844,0.03244074,2562.4,2561.7,0.62806257]
[1724794380074,0.03244074,2562.4,2561.7,1.7029169]
[1724794380587,3.93505074,2562.4,2561.7,1.7029169]
[1724794381001,3.90275,2562.3,2561.7,1.7029169]
[1724794381788,0.03244074,2562.4,2561.7,1.7029169]
[1724794383919,3.9023,2562.6,2561.8,0.07805998]
[1724794384091,3.90221,2562.7,2561.9,0.55]
[1724794384288,3.90221,2562.7,2562.0,9.66844959]
[1724794384473,5.9019,2562.9,2562.1,0.55]
[1724794384679,5.4284,2562.9,2562.2,0.07804686]
[1724794385015,3.93434074,2562.9,2562.2,0.07804686]
[1724794385320,7.83628074,2562.9,2562.2,0.07804686]
[1724794385623,3.93434074,2562.9,2562.2,0.07804686]
[1724794385781,3.90161,2563.1,2562.4,9.4033]
[1724794385979,3.90161,2563.1,2562.5,0.62803791]
[1724794386194,4.6819,2563.1,2562.5,0.62803791]
[1724794386996,8.58354,2563.1,2562.5,0.62803791]
[1724794387190,4.6819,2563.1,2562.5,0.62803791]
[1724794388534,3.90167,2563.0,2562.5,0.62803791]
[1724794388833,3.93411074,2563.0,2562.5,0.55]
[1724794389335,1.9833298,2563.4,2562.5,0.55]
[1724794389493,8.07310137,2563.3,2562.5,0.55]
[1724794389695,3.93375074,2563.3,2562.5,0.55]
[1724794390127,3.90109,2563.4,2562.6,0.07803025]
[1724794390295,3.90109,2563.4,2562.8,9.5004]
[1724794390502,4.72097665,2563.4,2562.8,9.5004]
[1724794391345,3.901,2563.5,2562.8,9.5004]
[1724794391520,3.90087,2563.6,2562.9,0.62802338]
[1724794392135,0.03244074,2563.6,2562.9,0.62802338]
[1724794392348,5.93309074,2563.7,2562.9,0.62802338]
[1724794392495,5.93309074,2563.7,2563.0,1.56186365]
[1724794393014,5.93309074,2563.7,2563.1,0.07802081]
[1724794393317,5.90065,2563.7,2563.1,0.07802081]
[1724794393707,0.03244074,2563.8,2563.1,0.07802081]
[1724794393708,3.90053,2563.8,2563.1,0.07802081]
[1724794393936,4.880692,2563.8,2563.0,0.07801926]
[1724794394233,4.880692,2563.8,2563.1,0.55]
[1724794394433,4.880692,2563.8,2563.2,0.07801926]
[1724794394962,0.980092,2563.8,2563.2,0.07801926]
[1724794395141,3.90039,2563.9,2563.3,9.6545]
[1724794395459,0.03244074,2563.8,2563.3,9.6545]
[1724794395617,3.90039,2563.9,2563.3,9.6545]
[1724794395823,7.80082,2563.9,2563.3,9.6545]
[1724794396023,3.90039,2563.9,2563.3,9.6545]
[1724794396221,0.390039,2563.8,2563.3,9.6545]
[1724794396646,0.390039,2563.8,2563.4,0.07801502]
[1724794396830,3.89979,2564.3,2563.5,9.5102]
[1724794397156,3.89979,2564.3,2563.6,0.07800354]
[1724794398994,3.89946,2564.5,2563.7,0.55]
[1724794399303,3.89946,2564.5,2563.8,0.0779969]
[1724794399304,3.89955,2564.4,2563.8,0.0779969]
[1724794399500,3.93190074,2564.5,2563.8,0.07799691]
[1724794399501,0.779901,2564.3,2563.8,0.07799691]
[1724794399646,3.89946,2564.5,2563.8,0.07799691]
[1724794400391,3.89946,2564.5,2563.9,9.0916]
[1724794400685,3.89946,2564.5,2564.0,0.07799385]
[1724794401705,3.89946,2564.5,2563.9,9.0916]
[1724794402048,0.03244074,2564.6,2563.9,9.0916]
[1724794402290,3.89916,2564.7,2564.0,0.55]
[1724794402453,3.89916,2564.7,2564.0,0.62798885]
[1724794402648,0.03244074,2564.8,2564.0,0.55]
[1724794402949,5.89887,2564.9,2564.1,0.07798497]
[1724794403153,0.0354825,2564.7,2564.2,0.55]
[1724794403388,0.03244074,2564.8,2564.1,0.07798496]
[1724794403551,0.03244074,2564.8,2564.2,0.55]
[1724794403751,0.0354825,2564.7,2564.0,0.55]
[1724794403953,0.0354825,2564.7,2564.1,9.1721]
[1724794404248,0.0354825,2564.7,2564.2,0.55]
[1724794404648,0.0354825,2564.7,2564.2,1.52221]
[1724794405059,3.93131074,2564.9,2564.2,1.52221]
[1724794405264,0.0354825,2564.8,2564.2,1.52221]
[1724794407199,3.93108074,2565.0,2564.2,1.52221]
[1724794407200,0.03244074,2565.0,2564.2,1.52221]
[1724794407401,0.0354825,2564.7,2564.2,1.52221]
[1724794407560,3.93108074,2565.0,2564.2,1.52221]
[1724794407761,4.91404381,2565.0,2564.2,1.52221]
[1724794408088,0.0354825,2564.9,2564.2,1.52221]
[1724794409200,0.0354825,2564.9,2564.2,5.63550105]
[1724794410170,3.9342725,2564.9,2564.2,5.63550105]
[1724794411675,0.0354825,2564.9,2564.3,9.3808]
[1724794411868,3.89835,2565.2,2564.4,0.55]
[1724794412219,0.03562368,2565.1,2564.4,0.55]
[1724794412552,0.03562368,2565.1,2564.4,2.34439211]
[1724794412813,0.03562368,2565.1,2564.5,9.4609]
[1724794413012,0.03562368,2565.1,2564.6,0.55]
[1724794413177,3.89813,2565.4,2564.7,0.0779658]
[1724794413373,0.03555838,2565.0,2564.9,9.0567]
[1724794413578,7.7957,2565.6,2564.9,10.02516658]
[1724794413805,3.89759,2565.7,2565.1,9.0567]
[1724794414005,3.8975,2565.8,2565.2,0.62795738]
[1724794414006,0.03555838,2565.5,2565.2,0.62795738]
[1724794414328,3.89687,2566.2,2565.3,9.0567]
[1724794414329,0.03670778,2565.4,2565.3,9.0567]
[1724794414631,0.03670778,2565.4,2565.3,9.68465252]
[1724794414803,3.89688,2566.2,2565.3,9.68465252]
[1724794414969,4.676227,2566.2,2565.5,9.0567]
[1724794415171,0.03672794,2566.1,2565.6,0.62794049]
[1724794415406,0.03672794,2566.1,2565.6,0.55]
[1724794415613,0.03672794,2566.1,2565.7,0.07794037]
[1724794415786,0.03244074,2566.6,2565.8,0.55]
[1724794415787,3.89648,2566.5,2565.8,0.55]
[1724794416111,0.03764489,2566.4,2565.9,9.0567]
[1724794416267,0.03764489,2566.4,2566.0,0.07793328]
[1724794417112,0.03764489,2566.4,2565.9,9.0567]
[1724794417280,0.03764489,2566.4,2566.0,4.66329105]
[1724794417489,3.89595,2566.8,2566.2,9.7437]
[1724794417698,0.03802761,2566.7,2566.3,0.62791837]
[1724794417904,4.26181472,2567.2,2566.3,0.62791837]
[1724794418071,0.03802761,2566.6,2566.3,0.62791837]
[1724794418276,4.26181472,2567.2,2566.4,10.78086184]
[1724794418624,0.03802761,2567.1,2566.5,0.62790828]
[1724794418776,0.03802761,2567.1,2566.6,9.7437]
[1724794418973,0.03802761,2567.1,2566.7,0.55]
[1724794419178,0.03802761,2567.1,2566.9,9.7437]
[1724794419382,0.03802761,2567.1,2567.0,0.62789868]
[1724794419633,3.89448,2567.8,2567.0,0.62789868]
[1724794419838,0.12562,2567.9,2567.0,0.62789868]
[1724794419839,0.12562,2567.9,2567.1,9.4205]
[1724794420013,0.03676002,2567.7,2567.2,4.74117547]
[1724794420252,0.03965026,2567.8,2567.3,10.91454996]
[1724794420420,0.12562,2567.9,2567.3,10.91454996]
[1724794420421,0.03989179,2567.7,2567.4,0.55]
[1724794420624,0.12562,2567.9,2567.6,9.9792]
[1724794420925,0.03989179,2567.8,2567.7,0.62787403]
[1724794421229,0.12562,2567.9,2567.7,9.81297403]
[1724794421445,0.12562,2567.9,2567.8,8.25186386]
[1724794421652,0.12562,2567.9,2567.8,17.98696386]
[1724794422021,0.12562,2567.9,2567.8,13.87367281]
[1724794422218,0.12562,2567.9,2567.8,13.7958074]
[1724794422770,0.12562,2567.9,2567.8,17.6901874]
[1724794423859,0.12562,2567.9,2567.8,13.7958074]
[1724794424421,0.12562,2567.9,2567.8,21.9759674]
[1724794426837,0.00955485,2567.9,2567.8,21.9759674]
[1724794427287,3.89172,2569.6,2568.4,9.7046]
[1724794427612,3.89172,2569.6,2568.5,1.909808]
[1724794427613,0.04377308,2569.5,2568.5,1.909808]
[1724794427751,0.04377308,2569.5,2568.5,9.696258]
[1724794428093,0.04377308,2569.5,2568.6,9.7046]
[1724794428242,3.89223,2569.3,2568.7,0.55]
[1724794428442,3.89205,2569.4,2568.8,1.02546]
[1724794428672,0.04377308,2569.3,2568.9,0.55]
[1724794437112,3.93590308,2569.3,2568.9,0.55]
[1724794437759,0.04377308,2569.3,2568.9,0.55]
[1724794438510,3.93591308,2569.3,2568.9,0.55]
[1724794438798,0.04377308,2569.3,2569.0,0.07784069]
[1724794439115,7.78343,2569.6,2569.1,0.55]
[1724794439396,0.04479772,2569.2,2569.1,0.55]
[1724794439602,3.89169,2569.6,2568.9,0.55]
[1724794440118,0.04479772,2569.5,2568.9,0.55]
[1724794440261,3.93663772,2569.5,2568.9,0.55]
[1724794440605,7.78432,2569.3,2568.9,0.55]
[1724794440823,7.78432,2569.3,2568.8,0.55]
[1724794440959,0.0447475,2569.2,2568.8,0.55]
[1724794441285,3.89226,2569.2,2568.8,0.55]
[1724794441490,0.0447475,2569.1,2568.8,0.55]
[1724794442229,3.9371775,2569.1,2568.8,0.55]
[1724794442510,3.9371775,2569.1,2568.7,9.8262]
[1724794442724,7.8297175,2569.1,2568.7,9.8262]
[1724794442887,3.89257,2569.0,2568.7,9.8262]
[1724794443208,3.93743741,2568.9,2568.5,1.359808]
[1724794443411,3.93743741,2568.9,2568.5,4.359808]
[1724794443612,0.04472741,2568.9,2568.5,4.359808]
[1724794443977,3.89264,2569.0,2568.5,4.359808]
[1724794444173,0.04462008,2568.8,2568.5,4.359808]
[1724794444418,3.89243,2569.1,2568.5,4.359808]
[1724794444879,0.04462008,2569.0,2568.6,0.55]
[1724794445189,0.04462008,2569.0,2568.7,9.6831]
[1724794445374,0.04462008,2569.0,2568.8,3.55]
[1724794445581,3.89159,2569.7,2568.8,3.55]
[1724794445923,0.04453972,2569.6,2568.8,3.55]
[1724794447005,0.04453972,2569.6,2568.8,7.44286]
[1724794447207,0.04453972,2569.6,2568.9,2.16137075]
[1724794447384,3.89159,2569.7,2569.1,9.7349]
[1724794448027,3.89124,2569.9,2569.2,0.55]
[1724794448028,0.04453972,2569.6,2569.2,0.55]
[1724794448322,3.89144,2569.8,2569.2,0.55]
[1724794448479,0.04453972,2569.5,2569.2,0.55]
[1724794448822,3.89144,2569.8,2569.2,1.57849]
[1724794449024,0.04453972,2569.4,2569.2,1.57849]
[1724794449321,0.04453972,2569.3,2569.2,1.57849]
[1724794449481,0.04453972,2569.3,2569.2,0.62783202]
[1724794449829,3.89144,2569.8,2569.2,0.62783202]
[1724794449993,3.89144,2569.8,2569.2,0.55]
[1724794449994,0.04453972,2569.3,2569.2,0.55]
[1724794450233,3.89144,2569.8,2569.2,0.55]
[1724794450413,0.04453972,2569.3,2569.2,0.55]
[1724794450614,3.89181,2569.5,2569.2,0.55]
[1724794450847,0.04470042,2569.3,2569.2,0.55]
[1724794451044,3.89181,2569.5,2569.2,0.55]
[1724794451533,0.04470042,2569.4,2569.2,0.55]
[1724794453345,0.04470042,2569.4,2569.3,1.02849]
[1724794453543,3.89139,2569.8,2569.3,1.57849]
[1724794453751,3.89139,2569.8,2569.4,0.55]
[1724794453996,3.8912,2569.9,2569.4,0.55]
[1724794454294,3.89111,2570.0,2569.2,0.55]
[1724794454440,3.89111,2570.0,2569.3,0.07782814]
[1724794454641,3.89111,2570.0,2569.4,0.55]
[1724794454986,3.89111,2570.0,2569.5,0.07782807]
[1724794455200,3.89111,2570.0,2569.6,0.55]
[1724794455745,3.89111,2570.0,2569.4,0.55]
[1724794455972,3.89111,2570.0,2569.5,0.07782393]
[1724794456169,3.89111,2570.0,2569.6,0.55]
[1724794458560,3.89111,2570.0,2569.4,0.55]
[1724794458761,3.89111,2570.0,2569.5,0.07782399]
[1724794458934,3.89111,2570.0,2569.6,0.55]
[1724794460058,0.04526282,2569.9,2569.6,0.55]
[1724794461938,3.89136,2569.8,2569.6,0.55]
[1724794462173,3.89136,2569.8,2569.4,0.55]
[1724794462373,0.04564438,2569.7,2569.4,0.55]
[1724794462759,3.89136,2569.8,2569.4,0.55]
[1724794463453,0.04564438,2569.7,2569.4,0.55]
[1724794463746,3.89136,2569.8,2569.4,0.55]
[1724794463960,0.04564438,2569.6,2569.4,0.55]
[1724794464157,7.7828,2569.8,2569.4,0.55]
[1724794464357,0.04564438,2569.5,2569.4,0.55]
[1724794464539,3.89136,2569.8,2569.4,0.55]
[1724794464768,0.04564438,2569.5,2569.4,0.55]
[1724794465079,3.89136,2569.8,2569.4,0.55]
[1724794465607,0.04564438,2569.7,2569.4,0.55]
[1724794466099,0.04564438,2569.6,2569.4,0.55]
[1724794466299,3.89136,2569.8,2569.4,0.55]
[1724794466502,0.04564438,2569.7,2569.4,0.55]
[1724794466704,3.89136,2569.8,2569.4,0.55]
[1724794466901,0.04564438,2569.7,2569.4,0.55]
[1724794467080,3.89136,2569.8,2569.4,0.55]
[1724794467261,0.04564438,2569.7,2569.4,0.55]
[1724794467466,3.89136,2569.8,2569.4,0.55]
[1724794467777,3.89168,2569.6,2569.4,0.55]
[1724794467981,3.89213,2569.3,2569.0,9.9351]
[1724794468282,0.03244074,2569.5,2569.0,9.9351]
[1724794468283,3.89206,2569.4,2569.0,9.9351]
[1724794468477,0.04552389,2569.3,2569.0,9.9351]
[1724794469273,2.04811474,2569.3,2569.0,9.9351]
[1724794469684,5.94022474,2569.3,2569.0,9.9351]
[1724794469879,5.92738159,2569.2,2569.0,9.9351]
[1724794470114,0.04514229,2569.1,2569.0,9.9351]
[1724794470312,0.04514229,2569.1,2568.6,7.37]
[1724794470313,3.93755229,2569.1,2568.7,9.2494]
[1724794470544,9.3165,2568.8,2567.3,9.2494]
[1724794470820,9.3165,2568.8,2567.4,0.20233173]
[1724794470821,3.89421,2568.0,2567.4,0.20233173]
[1724794471022,2.00427122,2567.7,2567.3,9.2494]
[1724794471335,3.89531,2567.2,2566.5,9.0033]
[1724794471511,0.07746251,2567.6,2566.5,9.0033]
[1724794471512,2.00427122,2567.3,2566.5,9.0033]
[1724794471715,2.07962401,2567.2,2566.5,9.0033]
[1724794472011,5.89991122,2567.0,2566.5,9.0033]
[1724794472175,3.89611,2566.7,2566.5,9.0033]
[1724794472374,3.89611,2566.7,2566.0,9.8533]
[1724794472753,3.9391118,2566.6,2566.0,9.8533]
[1724794473279,3.89666,2566.3,2565.4,9.8533]
[1724794473512,3.89666,2566.3,2565.5,0.389798]
[1724794473513,0.04167523,2566.2,2565.5,0.389798]
[1724794473718,0.07411597,2566.2,2565.5,0.389798]
[1724794474030,3.8974,2565.9,2565.4,9.8533]
[1724794474175,3.89761,2565.7,2565.4,9.8533]
[1724794474375,0.03244074,2565.8,2565.4,9.8533]
[1724794474376,3.93017074,2565.6,2565.4,9.8533]
[1724794474574,0.03951267,2565.8,2565.0,9.8533]
[1724794474575,3.93034074,2565.5,2565.0,9.8533]
[1724794474776,3.96985341,2565.5,2565.0,9.8533]
[1724794475616,0.03951267,2565.5,2565.1,0.07796901]
[1724794475833,0.03951267,2565.5,2565.1,4.46249591]
[1724794476028,3.92926074,2566.2,2565.1,4.46249591]
[1724794476321,3.89713,2566.0,2565.1,4.3845269]
[1724794476560,3.89713,2566.0,2565.2,1.42378269]
[1724794476742,0.03635028,2565.9,2565.3,0.55]
[1724794477126,3.89698,2566.1,2565.3,0.55]
[1724794477451,0.03635028,2566.0,2565.3,0.55]
[1724794477852,3.96596102,2566.0,2565.3,0.55]
[1724794478153,3.89727,2565.9,2565.3,0.55]
[1724794478326,0.03244074,2565.8,2565.3,0.55]
[1724794478709,0.03635028,2565.7,2565.3,0.55]
[1724794478914,3.89727,2565.9,2565.3,0.62795555]
[1724794479114,0.03635028,2565.8,2565.3,0.62795555]
[1724794479435,0.03635028,2565.8,2565.3,1.09431382]
[1724794480112,3.92957074,2566.0,2565.3,1.09431382]
[1724794480441,0.03640066,2565.9,2565.3,1.09431382]
[1724794482762,0.03640066,2565.9,2565.3,1.1722695]
[1724794483849,0.03640066,2565.9,2565.3,5.0704195]
[1724794484085,0.03244074,2566.3,2565.4,0.68856022]
[1724794484224,0.03639058,2565.8,2565.6,11.6506]
[1724794484424,4.49398238,2566.5,2565.6,11.6506]
[1724794484425,3.8964,2566.5,2565.7,0.62793745]
[1724794484854,0.03639058,2566.4,2565.7,0.62793745]
[1724794485025,0.06883132,2566.4,2565.7,0.62793745]
[1724794485757,3.96535132,2566.4,2565.7,0.62793745]
[1724794485960,3.89686,2566.2,2565.8,2.1998]
[1724794486278,3.89686,2566.2,2565.9,0.55]
[1724794486570,0.03639058,2566.1,2565.9,0.55]
[1724794490528,0.03639058,2566.1,2566.0,2.1896]
[1724794490732,0.03639058,2566.1,2566.0,2.7396]
[1724794491451,3.93335058,2566.1,2566.0,2.7396]
[1724794491980,0.03639058,2566.1,2566.0,0.55]
[1724794493550,3.93335058,2566.1,2566.0,0.55]
[1724794496338,3.96579132,2566.1,2566.0,0.55]
[1724794496565,3.93335058,2566.1,2566.0,0.55]
[1724794499474,13.36855058,2566.1,2566.0,0.55]
[1724794499870,3.89731,2565.9,2565.2,1.42378269]
[1724794500060,3.89749,2565.8,2565.4,0.19680965]
[1724794500261,9.7766,2565.7,2565.0,3.0]
[1724794500507,9.7766,2565.7,2564.8,3.0]
[1724794500730,0.03491555,2565.6,2564.8,3.0]
[1724794501012,0.03491555,2565.6,2564.9,1.4269]
[1724794501375,0.03491555,2565.6,2564.9,5.32568]
[1724794501608,0.03491555,2565.6,2565.0,3.0]
[1724794501769,0.03491555,2565.6,2565.1,0.55]
[1724794501971,9.7766,2565.7,2565.1,0.55]
[1724794502172,0.03487524,2565.5,2565.2,0.355]
[1724794502398,9.7766,2565.7,2565.3,0.55]
[1724794502593,0.03487524,2565.4,2565.3,0.55]
[1724794502829,9.0387,2566.0,2565.3,0.55]
[1724794503063,0.03487524,2565.4,2565.3,0.55]
[1724794503563,12.93581,2566.0,2565.3,0.55]
[1724794503770,0.03483493,2565.4,2565.3,0.55]
[1724794504468,9.0387,2566.0,2565.3,0.55]
[1724794505006,0.03483493,2565.9,2565.3,0.55]
[1724794506165,3.89674,2566.3,2565.3,0.55]
[1724794506166,3.89601,2566.8,2565.7,3.89748]
[1724794506366,3.92844074,2566.8,2565.8,4.01767735]
[1724794506605,3.896,2566.8,2565.8,4.01767735]
[1724794506806,3.92844074,2566.8,2565.8,4.01767735]
[1724794506992,7.82444074,2566.8,2565.9,0.79151574]
[1724794507309,3.92844074,2566.8,2566.0,0.62792667]
[1724794508185,3.896,2566.8,2566.0,9.86512667]
[1724794508382,7.79199,2566.8,2566.1,1.06566424]
[1724794508571,5.07946575,2567.2,2566.2,0.55]
[1724794508772,3.89541,2567.2,2566.3,0.07791843]
[1724794509119,3.89547,2567.1,2566.5,9.2372]
[1724794509284,3.92791074,2567.1,2566.6,0.55]
[1724794510015,3.92791074,2567.1,2566.3,0.07791748]
[1724794510016,3.92791074,2567.1,2566.4,0.55]
[1724794510175,3.92791074,2567.1,2566.5,0.07791748]
[1724794510515,3.92791074,2567.1,2566.6,0.55]
[1724794510918,0.03244074,2567.1,2566.4,0.55]
[1724794511208,0.03244074,2567.1,2566.5,0.07791745]
[1724794511411,7.79078,2567.2,2566.6,0.55]
[1724794511614,13.47438,2567.4,2566.7,0.07791008]
[1724794511820,13.47438,2567.4,2566.8,0.55]
[1724794512123,3.89508,2567.4,2566.8,0.55]
[1724794512413,8.00103155,2567.6,2566.9,9.37131035]
[1724794512619,4.10628155,2567.6,2567.0,1.54213104]
[1724794512816,3.8946,2567.7,2567.0,1.54213104]
[1724794513030,8.00054155,2567.9,2567.0,1.62002777]
[1724794513317,3.89415,2568.0,2567.0,1.54213104]
[1724794513615,3.89415,2568.0,2567.1,1.09134278]
[1724794513821,3.89415,2568.0,2567.2,0.55]
[1724794514164,8.03254229,2568.2,2567.2,0.55]
[1724794514165,3.89393,2568.1,2567.2,0.55]
[1724794514365,5.84331944,2568.5,2567.2,0.55]
[1724794514366,3.89355,2568.4,2567.5,9.4739]
[1724794514512,3.89355,2568.4,2567.6,1.886887]
[1724794514714,4.10628155,2568.8,2567.6,4.886887]
[1724794515055,4.10628155,2569.2,2568.2,3.89365]
[1724794515221,4.10628155,2569.2,2568.3,1.01721142]
[1724794515627,4.10628155,2569.2,2568.4,0.07784749]
[1724794515628,0.03567978,2569.1,2568.4,0.07784749]
[1724794515839,0.03567978,2569.1,2568.5,0.62785198]
[1724794516135,0.03567978,2569.1,2568.6,0.55]
[1724794516343,0.03567978,2569.1,2568.7,0.07784776]
[1724794516519,7.78439,2569.3,2568.8,0.55]
[1724794516848,3.89257,2569.0,2568.8,0.55]
[1724794517049,7.78524,2569.0,2568.8,0.55]
[1724794517257,3.89257,2569.0,2568.8,0.55]
[1724794517456,0.03567978,2568.9,2568.8,0.55]
[1724794518011,3.92838978,2568.9,2568.8,0.55]
[1724794518342,11.92738133,2568.9,2568.8,0.55]
[1724794518915,3.89349,2568.4,2567.6,10.860387]
[1724794519124,3.93245099,2568.3,2567.6,10.860387]
[1724794519464,3.89418,2568.0,2567.2,9.5235]
[1724794519645,9.66924074,2568.2,2567.1,1.09134278]
[1724794519856,0.03842921,2567.9,2567.1,1.09134278]
[1724794520144,9.66924074,2568.2,2567.1,1.09134278]
[1724794520311,4.10628155,2568.0,2567.1,1.09134278]
[1724794520513,4.13872229,2568.0,2567.1,1.09134278]
[1724794520972,3.8944,2567.8,2567.1,1.09134278]
[1724794521617,0.03824811,2567.7,2567.1,1.09134278]
[1724794522574,7.7883,2568.0,2567.1,4.09134278]
[1724794522774,3.89433,2567.9,2567.2,0.95913428]
[1724794523065,3.93257811,2567.9,2567.2,0.95913428]
[1724794523218,0.03824811,2567.9,2567.2,0.95913428]
[1724794523562,13.53062,2568.2,2567.2,0.95913428]
[1724794523722,13.53062,2568.2,2567.3,0.50504771]
[1724794523723,3.89396,2568.1,2567.3,0.50504771]
[1724794523922,0.03824811,2568.0,2567.4,0.55]
[1724794524528,3.93234811,2568.0,2567.4,0.55]
[1724794525237,7.82654811,2568.0,2567.4,0.55]
[1724794525439,3.89425,2567.9,2567.4,0.55]